bitfinex/quotes_BTCUSD_20240828
["timestamp","ask_amount","ask_price","bid_price","bid_amount"]
[1724877011189,0.000818,59333.0,59332.0,0.168543]
[1724877011388,0.000818,59333.0,59332.0,0.528629]
[1724877011587,0.000818,59333.0,59332.0,1.202801]
[1724877011793,0.000818,59333.0,59332.0,1.283501]
[1724877012015,0.000818,59333.0,59332.0,2.58266191]
[1724877012220,0.02724679,59333.0,59332.0,2.61448191]
[1724877012469,0.01753366,59355.0,59333.0,0.002]
[1724877012639,0.01753366,59355.0,59349.0,0.986272]
[1724877012847,0.00100002,59364.0,59349.0,0.986272]
[1724877013066,0.00100002,59364.0,59349.0,1.346261]
[1724877013274,0.336923,59361.0,59349.0,0.672283]
[1724877013426,0.336942,59358.0,59349.0,0.672283]
[1724877013621,0.336923,59361.0,59349.0,1.009272]
[1724877013829,0.3369,59365.0,59349.0,1.360261]
[1724877014026,0.01753366,59366.0,59349.0,1.360261]
[1724877014027,0.336921,59362.0,59349.0,0.8561291]
[1724877014234,0.336921,59362.0,59349.0,1.1931181]
[1724877014437,0.16847,59358.0,59349.0,1.1931181]
[1724877014685,0.168474,59357.0,59349.0,0.720103]
[1724877014894,0.168474,59357.0,59349.0,0.734103]
[1724877015100,0.506292,59350.0,59349.0,0.028]
[1724877015308,1.180258,59350.0,59349.0,0.014]
[1724877015516,1.180258,59350.0,59349.0,0.028]
[1724877015517,0.169309,59350.0,59349.0,0.028]
[1724877015724,0.506292,59350.0,59349.0,0.028]
[1724877015933,0.506292,59350.0,59349.0,0.196494]
[1724877015934,0.000818,59350.0,59349.0,0.196494]
[1724877016141,0.000818,59350.0,59349.0,0.0813503]
[1724877016351,0.000818,59350.0,59349.0,0.014]
[1724877016548,0.000818,59350.0,59349.0,0.93754172]
[1724877016758,0.000818,59350.0,59349.0,0.34996372]
[1724877016967,0.000818,59350.0,59349.0,0.36396372]
[1724877017183,0.169309,59350.0,59349.0,0.1427]
[1724877017387,0.000818,59350.0,59349.0,0.1287]
[1724877017584,0.169309,59350.0,59349.0,0.1287]
[1724877017783,0.000818,59350.0,59349.0,0.1427]
[1724877018264,0.000818,59350.0,59349.0,0.1287]
[1724877018478,0.02724314,59350.0,59349.0,0.1287]
[1724877018686,0.02724314,59350.0,59349.0,0.1147]
[1724877018857,0.02724314,59350.0,59349.0,0.1287]
[1724877019061,0.02724314,59350.0,59349.0,0.3129139]
[1724877019438,0.02724314,59350.0,59349.0,0.1287]
[1724877019677,0.02724314,59350.0,59349.0,0.1147]
[1724877019920,0.02724314,59350.0,59349.0,0.1007]
[1724877020121,0.02724314,59350.0,59349.0,0.1287]
[1724877020665,0.53271714,59350.0,59349.0,0.1287]
[1724877020864,0.86970014,59350.0,59349.0,0.037]
[1724877021254,0.86970014,59350.0,59349.0,0.051]
[1724877021404,0.02724314,59350.0,59349.0,0.051]
[1724877021606,0.02724314,59350.0,59349.0,0.037]
[1724877021811,0.19573414,59350.0,59349.0,0.051]
[1724877022008,0.19573414,59350.0,59349.0,0.023]
[1724877022009,0.02724314,59350.0,59349.0,0.023]
[1724877022233,0.19573714,59350.0,59346.0,0.1915]
[1724877022436,0.36422914,59350.0,59346.0,0.023]
[1724877022611,0.36422914,59350.0,59338.0,0.0636]
[1724877022612,0.00100002,59349.0,59338.0,0.0636]
[1724877022811,0.00100002,59349.0,59336.0,1.327]
[1724877022812,0.505585,59337.0,59336.0,1.2443]
[1724877023023,0.10100002,59349.0,59329.0,0.0827]
[1724877023024,0.505645,59330.0,59329.0,0.0827]
[1724877023225,0.337023,59343.0,59329.0,0.0827]
[1724877023474,0.36352886,59330.0,59329.0,0.0827]
[1724877023701,0.02643186,59330.0,59323.0,0.0639]
[1724877023905,0.00100002,59339.0,59323.0,0.0639]
[1724877024105,0.0264334,59330.0,59323.0,0.20237]
[1724877024313,0.168548,59330.0,59329.0,0.008]
[1724877024582,0.0042981,59348.0,59329.0,0.008]
[1724877024583,0.0828,59346.0,59329.0,0.008]
[1724877024792,0.00100002,59345.0,59330.0,0.168546]
[1724877024984,0.00100002,59344.0,59331.0,0.0513655]
[1724877025187,0.169548,59330.0,59329.0,0.014]
[1724877025390,0.001,59330.0,59329.0,0.182551]
[1724877025600,0.02643222,59342.0,59335.0,0.168533]
[1724877025601,0.168521,59340.0,59335.0,0.168533]
[1724877025808,0.337037,59341.0,59329.0,0.07867378]
[1724877025809,0.02643222,59342.0,59336.0,0.1028701]
[1724877025970,0.02643222,59342.0,59340.0,0.168518]
[1724877026173,0.02643222,59342.0,59341.0,0.191517]
[1724877026387,0.02643222,59342.0,59341.0,0.6433093]
[1724877026547,0.02643222,59342.0,59341.0,0.253417]
[1724877027214,0.02643222,59342.0,59341.0,0.0849]
[1724877027414,0.02643222,59342.0,59341.0,0.253417]
[1724877027621,0.02643222,59342.0,59341.0,0.604452]
[1724877028020,0.02643222,59342.0,59341.0,0.267417]
[1724877028344,0.02643222,59342.0,59341.0,0.63250669]
[1724877028542,0.02643222,59342.0,59341.0,0.604452]
[1724877028776,0.02643222,59342.0,59341.0,0.281417]
[1724877028962,0.02643222,59342.0,59341.0,0.1129]
[1724877029155,0.02643222,59342.0,59341.0,0.219517]
[1724877029725,0.02643222,59342.0,59341.0,0.051]
[1724877030120,0.19494622,59342.0,59341.0,0.051]
[1724877030274,0.53197522,59342.0,59341.0,0.051]
[1724877030492,1.20603322,59342.0,59341.0,0.028]
[1724877031105,1.70536222,59342.0,59341.0,0.028]
[1724877031318,2.04439122,59342.0,59341.0,0.028]
[1724877031526,1.179759,59334.0,59333.0,0.0008998]
[1724877031752,1.593233,59334.0,59333.0,0.0008998]
[1724877032073,1.693233,59334.0,59333.0,0.0008998]
[1724877032290,1.71967075,59334.0,59333.0,0.0008998]
[1724877032696,2.05674475,59334.0,59333.0,0.0008998]
[1724877032907,2.12866814,59334.0,59333.0,0.0008998]
[1724877033125,0.005,59323.0,59299.0,0.0799]
[1724877033328,0.005,59323.0,59299.0,0.248534]
[1724877033329,0.168622,59304.0,59299.0,0.248534]
[1724877033542,0.00100002,59308.0,59299.0,0.0799]
[1724877033670,0.168629,59302.0,59299.0,0.0799]
[1724877033877,0.0264457,59303.0,59299.0,0.0799]
[1724877034218,0.0264457,59303.0,59302.0,0.168628]
[1724877034403,0.0264457,59303.0,59302.0,0.505884]
[1724877035171,0.0264457,59303.0,59302.0,1.203396]
[1724877035372,0.10100002,59319.0,59302.0,0.1059]
[1724877035744,0.168617,59306.0,59303.0,0.03499]
[1724877035949,0.337179,59316.0,59304.0,0.337243]
[1724877036164,0.168617,59306.0,59305.0,0.023]
[1724877036371,0.168617,59306.0,59303.0,0.023]
[1724877036372,0.168607,59310.0,59303.0,0.023]
[1724877036502,0.337203,59312.0,59306.0,0.168616]
[1724877036503,0.168601,59312.0,59306.0,0.168616]
[1724877036723,0.168601,59312.0,59307.0,0.023]
[1724877036934,0.168605,59311.0,59307.0,0.023]
[1724877037119,0.168611,59308.0,59307.0,0.023]
[1724877037339,0.168611,59308.0,59303.0,0.191625]
[1724877037543,0.337212,59310.0,59303.0,0.191625]
[1724877037544,0.168616,59307.0,59303.0,0.023]
[1724877037748,0.168616,59307.0,59303.0,0.191625]
[1724877037954,0.168622,59304.0,59303.0,0.023]
[1724877038428,0.168625,59303.0,59302.0,0.0829]
[1724877039276,0.0264454,59304.0,59302.0,0.0829]
[1724877039488,0.0264454,59304.0,59303.0,0.505876]
[1724877039716,0.0264454,59304.0,59303.0,0.56484358]
[1724877039908,0.0264454,59304.0,59303.0,0.92509458]
[1724877040319,0.0264454,59304.0,59303.0,0.93909458]
[1724877040734,0.0264454,59304.0,59303.0,0.205625]
[1724877041192,0.0264454,59304.0,59303.0,0.542876]
[1724877041384,0.0264454,59304.0,59303.0,1.231378]
[1724877041587,0.0264454,59304.0,59303.0,0.894127]
[1724877041799,0.0264454,59304.0,59303.0,0.880127]
[1724877041999,0.0264454,59304.0,59303.0,0.97651968]
[1724877042232,0.061018,59342.0,59319.0,0.0764]
[1724877042482,0.29546669,59340.0,59320.0,0.4998]
[1724877042672,0.061018,59342.0,59321.0,0.0913369]
[1724877042889,0.061018,59342.0,59322.0,0.03382]
[1724877042890,0.168539,59334.0,59322.0,0.03382]
[1724877043116,0.337088,59332.0,59323.0,0.19155164]
[1724877043294,0.168565,59324.0,59323.0,0.023]
[1724877043503,0.168565,59324.0,59321.0,0.023]
[1724877043671,0.168565,59324.0,59320.0,0.023]
[1724877043874,0.337123,59326.0,59321.0,0.0267979]
[1724877044073,0.337123,59326.0,59322.0,0.023]
[1724877044074,0.168567,59324.0,59322.0,0.023]
[1724877044280,0.168568,59323.0,59322.0,0.023]
[1724877044482,0.505705,59323.0,59322.0,0.023]
[1724877044685,0.168569,59323.0,59321.0,0.014]
[1724877044887,0.168568,59323.0,59322.0,0.023]
[1724877045647,0.02643702,59323.0,59322.0,0.023]
[1724877045851,0.19500502,59323.0,59322.0,0.023]
[1724877046081,0.53214202,59323.0,59322.0,0.023]
[1724877046303,0.19500502,59323.0,59322.0,0.023]
[1724877046519,0.19480217,59323.0,59322.0,0.014]
[1724877046723,0.19480217,59323.0,59322.0,0.037]
[1724877047151,0.33500217,59323.0,59322.0,0.037]
[1724877047355,1.34641317,59323.0,59322.0,0.014]
[1724877047774,1.44641317,59323.0,59322.0,0.014]
[1724877047982,0.02623417,59323.0,59320.0,0.076]
[1724877048224,0.02623417,59323.0,59322.0,0.014]
[1724877048461,0.168571,59322.0,59320.0,0.076]
[1724877048961,0.168591,59315.0,59314.0,0.076]
[1724877048963,0.168595,59314.0,59311.0,0.0622]
[1724877049237,0.168595,59314.0,59310.0,0.168605]
[1724877049500,0.00100002,59313.0,59304.0,0.0622]
[1724877049726,0.168623,59304.0,59301.0,0.076]
[1724877050018,0.337193,59314.0,59302.0,0.168627]
[1724877050205,0.00100002,59313.0,59301.0,0.076]
[1724877050473,0.33724,59305.0,59301.0,0.076]
[1724877050721,0.16862,59305.0,59301.0,0.076]
[1724877050951,0.16862,59305.0,59301.0,0.244629]
[1724877051201,0.168623,59304.0,59301.0,0.09]
[1724877051432,0.337206,59311.0,59302.0,0.014]
[1724877051665,0.168614,59307.0,59303.0,0.168625]
[1724877051890,0.168614,59307.0,59304.0,0.023]
[1724877052368,0.337206,59311.0,59304.0,0.023]
[1724877052369,0.337205,59311.0,59304.0,0.023]
[1724877052622,0.337205,59311.0,59303.0,0.023]
[1724877052623,0.00100002,59310.0,59303.0,0.023]
[1724877052859,0.168627,59303.0,59302.0,0.023]
[1724877053069,0.337223,59308.0,59302.0,0.023]
[1724877053318,0.16862,59305.0,59302.0,0.023]
[1724877053525,0.337214,59310.0,59302.0,0.023]
[1724877053747,0.08340002,59309.0,59299.0,0.0008998]
[1724877053978,0.645302,59300.0,59299.0,0.0008998]
[1724877054194,1.321838,59300.0,59299.0,0.0008998]
[1724877054414,1.421838,59300.0,59299.0,0.0008998]
[1724877054635,1.759106,59300.0,59299.0,0.0008998]
[1724877055063,1.421838,59300.0,59299.0,0.0008998]
[1724877055287,1.419838,59300.0,59299.0,0.0008998]
[1724877055506,0.745302,59300.0,59299.0,0.0008998]
[1724877055949,1.419838,59300.0,59299.0,0.0008998]
[1724877056649,1.419838,59300.0,59299.0,0.0138998]
[1724877056859,1.421838,59300.0,59299.0,0.0138998]
[1724877057079,1.421838,59300.0,59299.0,0.0008998]
[1724877057296,1.759106,59300.0,59299.0,0.0138998]
[1724877057508,1.419838,59300.0,59299.0,0.0138998]
[1724877057732,1.419838,59300.0,59299.0,0.0008998]
[1724877058159,1.419838,59300.0,59299.0,0.0138998]
[1724877058600,1.421838,59300.0,59299.0,0.0138998]
[1724877058804,1.426838,59300.0,59299.0,0.0008998]
[1724877059221,1.44437166,59300.0,59299.0,0.0008998]
[1724877059433,1.78163966,59300.0,59299.0,0.0008998]
[1724877059636,1.44437166,59300.0,59299.0,0.0008998]
[1724877059842,1.78163966,59300.0,59299.0,0.0008998]
[1724877060046,1.44437166,59300.0,59299.0,0.0008998]
[1724877060263,1.43737166,59300.0,59299.0,0.0138998]
[1724877060486,1.43737166,59300.0,59299.0,0.0008998]
[1724877060706,1.10010366,59300.0,59299.0,0.0008998]
[1724877060915,1.10010366,59300.0,59299.0,0.0138998]
[1724877061127,1.10010366,59300.0,59299.0,0.0008998]
[1724877061334,1.43737166,59300.0,59299.0,0.0008998]
[1724877061577,1.43737166,59300.0,59299.0,0.0138998]
[1724877061813,1.43737166,59300.0,59299.0,0.0008998]
[1724877061814,1.77963966,59300.0,59299.0,0.0008998]
[1724877062024,1.77963966,59300.0,59299.0,0.0148998]
[1724877062241,1.44237166,59300.0,59299.0,0.0148998]
[1724877062448,1.78163966,59300.0,59299.0,0.0148998]
[1724877062653,1.44437166,59300.0,59299.0,0.0148998]
[1724877062874,1.78163966,59300.0,59299.0,0.0148998]
[1724877063296,1.78163966,59300.0,59299.0,0.0248998]
[1724877063544,1.44437166,59300.0,59299.0,0.0108998]
[1724877063773,1.44437166,59300.0,59299.0,0.0008998]
[1724877063977,1.44437166,59300.0,59299.0,0.0138998]
[1724877064226,1.74019594,59300.0,59299.0,0.0008998]
[1724877064442,1.74019594,59300.0,59299.0,0.0028998]
[1724877064657,1.73519594,59300.0,59299.0,0.0168998]
[1724877064901,1.73519594,59300.0,59299.0,0.0028998]
[1724877064902,1.74019594,59300.0,59299.0,0.0028998]
[1724877065120,1.74019594,59300.0,59299.0,0.0148998]
[1724877065574,1.73519594,59300.0,59299.0,0.0148998]
[1724877065788,1.73819594,59300.0,59299.0,0.0148998]
[1724877066003,1.73819594,59300.0,59299.0,0.0008998]
[1724877066004,1.31733607,59300.0,59299.0,0.0008998]
[1724877066449,1.31733607,59300.0,59299.0,0.0028998]
[1724877066863,1.32233607,59300.0,59299.0,0.0008998]
[1724877067091,1.73920407,59300.0,59299.0,0.0008998]
[1724877067311,1.75120407,59300.0,59299.0,0.0228998]
[1724877067545,1.74120407,59300.0,59299.0,0.0088998]
[1724877067795,0.98006807,59300.0,59299.0,0.0148998]
[1724877068084,0.98106807,59300.0,59299.0,0.0168998]
[1724877068314,1.31833607,59300.0,59299.0,0.0028998]
[1724877068535,1.62216035,59300.0,59299.0,0.0168998]
[1724877068741,2.03592835,59300.0,59299.0,0.0028998]
[1724877068952,2.03592835,59300.0,59299.0,0.0168998]
[1724877069183,2.03492835,59300.0,59299.0,0.0168998]
[1724877069399,1.69766035,59300.0,59299.0,0.0168998]
[1724877069822,1.69766035,59300.0,59299.0,0.0148998]
[1724877070031,2.03492835,59300.0,59299.0,0.0148998]
[1724877070239,2.03292835,59300.0,59299.0,0.0088998]
[1724877070451,2.03292835,59300.0,59299.0,0.0228998]
[1724877070672,2.03392835,59300.0,59299.0,0.0148998]
[1724877070878,2.03392835,59300.0,59299.0,0.0028998]
[1724877071090,2.03492835,59300.0,59299.0,0.0168998]
[1724877071507,2.03692835,59300.0,59299.0,0.0148998]
[1724877071713,2.03692835,59300.0,59299.0,0.0168998]
[1724877072197,2.04692835,59300.0,59299.0,0.0168998]
[1724877072849,2.38419635,59300.0,59299.0,8e-07]
[1724877073051,2.38419635,59300.0,59289.0,0.008987]
[1724877073052,1.180637,59290.0,59289.0,0.008987]
[1724877073467,1.280637,59290.0,59289.0,0.008987]
[1724877074844,1.281637,59290.0,59289.0,0.022987]
[1724877075048,1.281637,59290.0,59289.0,0.008987]
[1724877075625,1.91912912,59290.0,59289.0,0.008987]
[1724877075862,1.98292912,59290.0,59289.0,0.008987]
[1724877076332,1.99092912,59290.0,59289.0,0.018987]
[1724877076580,2.06832912,59290.0,59289.0,0.025987]
[1724877076830,2.06432912,59290.0,59289.0,0.015987]
[1724877077067,2.06032912,59290.0,59289.0,0.021987]
[1724877077295,2.06032912,59290.0,59289.0,0.027987]
[1724877077296,1.28697984,59290.0,59289.0,0.027987]
[1724877077551,1.28797984,59290.0,59289.0,0.033987]
[1724877077795,1.28797984,59290.0,59289.0,0.020987]
[1724877077796,1.28697984,59290.0,59289.0,0.020987]
[1724877078020,1.28797984,59290.0,59289.0,0.030987]
[1724877080143,1.28797984,59290.0,59289.0,0.092687]
[1724877080144,0.10734284,59290.0,59289.0,0.092687]
[1724877080389,0.10734284,59290.0,59289.0,0.3012307]
[1724877080390,0.103,59290.0,59289.0,0.3012307]
[1724877080607,0.103,59290.0,59289.0,0.115687]
[1724877080883,0.508987,59290.0,59289.0,0.020987]
[1724877081139,1.28363702,59290.0,59289.0,0.020987]
[1724877081375,1.61896202,59290.0,59289.0,0.008987]
[1724877081599,1.61896202,59290.0,59289.0,0.013987]
[1724877081600,1.61996202,59290.0,59289.0,0.013987]
[1724877082058,1.62196202,59290.0,59289.0,0.013987]
[1724877082295,1.61996202,59290.0,59289.0,0.022987]
[1724877082744,1.61996202,59290.0,59289.0,0.013987]
[1724877083393,1.61896202,59290.0,59289.0,0.008987]
[1724877083596,1.61896202,59290.0,59289.0,0.017987]
[1724877083808,1.61996202,59290.0,59289.0,0.031987]
[1724877084313,1.62096202,59290.0,59289.0,0.045987]
[1724877084577,1.282637,59290.0,59289.0,0.045987]
[1724877084780,0.945312,59290.0,59289.0,0.045987]
[1724877085233,0.102,59290.0,59289.0,0.148587]
[1724877085459,0.607987,59290.0,59289.0,0.148587]
[1724877085662,0.607987,59290.0,59289.0,0.045987]
[1724877085663,1.28363702,59290.0,59289.0,0.045987]
[1724877086085,1.28363702,59290.0,59289.0,0.036987]
[1724877086296,1.28363702,59290.0,59289.0,0.045987]
[1724877086503,1.28163702,59290.0,59289.0,0.017987]
[1724877086708,1.28163702,59290.0,59289.0,0.031987]
[1724877086912,1.28163702,59290.0,59289.0,0.022987]
[1724877087541,1.28163702,59290.0,59289.0,0.036987]
[1724877087957,0.605987,59290.0,59289.0,0.036987]
[1724877088573,0.1,59290.0,59289.0,0.036987]
[1724877088779,0.337253,59303.0,59291.0,0.168659]
[1724877088780,0.1,59293.0,59291.0,0.168659]
[1724877088983,0.26845103,59293.0,59292.0,0.023]
[1724877089192,0.16964902,59295.0,59292.0,0.023]
[1724877089397,0.16964902,59295.0,59291.0,0.168658]
[1724877089543,0.16964902,59295.0,59292.0,0.023]
[1724877089746,0.00100002,59295.0,59292.0,0.023]
[1724877089962,0.01753366,59302.0,59301.0,0.582093]
[1724877090127,0.33719,59314.0,59305.0,0.168618]
[1724877090128,0.168607,59310.0,59305.0,0.168618]
[1724877090328,0.168607,59310.0,59301.0,0.498962]
[1724877090329,0.168615,59307.0,59303.0,0.168623]
[1724877090658,0.168619,59305.0,59304.0,0.023]
[1724877090833,0.16861,59309.0,59304.0,0.168621]
[1724877091059,0.1686,59312.0,59308.0,0.16861]
[1724877091445,0.01753366,59314.0,59313.0,0.231097]
[1724877091898,0.01753366,59314.0,59313.0,0.591291]
[1724877092100,0.01753366,59314.0,59313.0,0.667291]
[1724877092351,0.01753366,59314.0,59313.0,0.330097]
[1724877092695,0.01753366,59314.0,59313.0,0.1755]
[1724877093147,0.01753366,59314.0,59313.0,0.014]
[1724877093148,0.86050366,59314.0,59313.0,0.014]
[1724877093348,0.505893,59301.0,59300.0,0.1419]
[1724877093713,0.843155,59301.0,59300.0,0.0754]
[1724877094162,0.843225,59296.0,59295.0,0.1456]
[1724877094299,0.168662,59290.0,59289.0,0.074787]
[1724877094496,0.168662,59290.0,59289.0,0.008987]
[1724877094775,0.843312,59290.0,59289.0,0.008987]
[1724877094980,1.180637,59290.0,59289.0,0.008987]
[1724877095596,0.843312,59290.0,59289.0,0.008987]
[1724877095979,1.180637,59290.0,59289.0,0.020987]
[1724877096562,1.280637,59290.0,59289.0,0.020987]
[1724877096769,1.695762,59290.0,59289.0,0.008987]
[1724877097117,1.38486574,59290.0,59289.0,0.008987]
[1724877097329,1.49756922,59290.0,59289.0,0.008987]
[1724877097546,1.44746574,59290.0,59289.0,0.022987]
[1724877097751,1.44746574,59290.0,59289.0,0.008987]
[1724877097953,1.78479074,59290.0,59289.0,0.008987]
[1724877098156,1.44946574,59290.0,59289.0,0.034987]
[1724877098327,1.44946574,59290.0,59289.0,0.020987]
[1724877098503,1.44946574,59290.0,59289.0,0.008987]
[1724877098709,1.44746574,59290.0,59289.0,0.008987]
[1724877098910,1.44746574,59290.0,59289.0,0.018987]
[1724877099115,1.84189422,59290.0,59289.0,0.018987]
[1724877099362,1.91704944,59290.0,59289.0,0.018987]
[1724877099513,1.79179074,59290.0,59289.0,0.018987]
[1724877099728,1.79179074,59290.0,59289.0,0.032987]
[1724877099943,2.30963388,59290.0,59289.0,1e-06]
[1724877100305,2.30963388,59290.0,59279.0,0.008998]
[1724877100306,1.670314,59280.0,59279.0,0.008998]
[1724877100521,2.43065322,59280.0,59279.0,0.008998]
[1724877100723,2.42994802,59280.0,59279.0,0.008998]
[1724877100942,2.53061009,59280.0,59279.0,0.008998]
[1724877101142,2.42994802,59280.0,59279.0,0.008998]
[1724877101284,2.16805919,59280.0,59279.0,0.008998]
[1724877101474,2.06613828,59280.0,59279.0,0.008998]
[1724877101675,2.06613828,59280.0,59279.0,0.013998]
[1724877101676,2.06113828,59280.0,59279.0,0.013998]
[1724877101894,2.06342043,59280.0,59279.0,0.013998]
[1724877102107,2.06842043,59280.0,59279.0,0.013998]
[1724877102596,2.07042043,59280.0,59279.0,0.013998]
[1724877102859,3.04100671,59280.0,59279.0,1e-06]
[1724877103107,2.84672493,59280.0,59279.0,0.001001]
[1724877103307,2.74706286,59280.0,59279.0,0.012001]
[1724877103555,2.52059893,59280.0,59279.0,0.011001]
[1724877103771,2.74106286,59280.0,59279.0,1e-06]
[1724877103991,2.84152787,59280.0,59279.0,1e-06]
[1724877104197,2.54570359,59280.0,59279.0,1e-06]
[1724877104424,3.07844386,59280.0,59279.0,1e-06]
[1724877104633,3.07844386,59280.0,59271.0,1e-06]
[1724877104634,2.31147228,59272.0,59271.0,1e-06]
[1724877104852,2.31147228,59272.0,59251.0,0.0004]
[1724877104853,0.007,59263.0,59251.0,0.0004]
[1724877105069,0.005,59252.0,59251.0,0.0004]
[1724877105286,0.007,59244.0,59243.0,0.008943]
[1724877105499,1.5640753,59244.0,59243.0,0.008943]
[1724877105696,2.66846696,59244.0,59243.0,1e-06]
[1724877105894,2.80253058,59244.0,59243.0,1e-06]
[1724877106203,2.80253058,59244.0,59239.0,1e-06]
[1724877106204,0.007,59240.0,59239.0,1e-06]
[1724877106535,2.33147164,59240.0,59239.0,1e-06]
[1724877106739,2.43147164,59240.0,59239.0,1e-06]
[1724877106934,2.050549,59240.0,59239.0,1e-06]
[1724877107160,1.71294,59240.0,59239.0,1e-06]
[1724877107569,1.71721664,59240.0,59239.0,1e-06]
[1724877108859,2.06182564,59240.0,59239.0,1e-06]
[1724877109067,1.80444682,59240.0,59239.0,1e-06]
[1724877109280,1.97325082,59240.0,59239.0,1e-06]
[1724877109494,1.62864182,59240.0,59239.0,1e-06]
[1724877109702,1.64464182,59240.0,59239.0,1e-06]
[1724877109983,1.64464182,59240.0,59223.0,0.50540786]
[1724877109984,1.181712,59236.0,59223.0,0.50540786]
[1724877110198,1.181712,59236.0,59217.0,0.08]
[1724877110199,1.13996128,59232.0,59217.0,0.075]
[1724877110438,1.81527128,59232.0,59217.0,0.075]
[1724877110648,1.91527128,59232.0,59217.0,0.075]
[1724877111081,1.91971345,59232.0,59212.0,0.0782]
[1724877111292,1.96328231,59232.0,59212.0,0.0782]
[1724877111510,2.41446845,59232.0,59212.0,0.0782]
[1724877111726,2.46003731,59232.0,59212.0,0.0782]
[1724877111951,2.46003731,59232.0,59211.0,0.0004]
[1724877111952,0.587584,59220.0,59211.0,0.0004]
[1724877112197,1.99657728,59220.0,59211.0,0.0004]
[1724877112423,0.844422,59212.0,59211.0,0.0004]
[1724877112660,1.99308428,59212.0,59211.0,0.0004]
[1724877113371,1.99308428,59212.0,59186.0,0.0785]
[1724877113372,1.18259,59192.0,59186.0,0.0785]
[1724877113796,1.18259,59192.0,59184.0,0.00012]
[1724877113797,1.620473,59192.0,59184.0,0.00012]
[1724877113997,1.66404186,59192.0,59184.0,0.00012]
[1724877114107,2.00192486,59192.0,59184.0,0.00012]
[1724877114311,0.168987,59176.0,59165.0,0.0777]
[1724877114515,0.168987,59176.0,59168.0,0.50540786]
[1724877114516,1.56903328,59176.0,59168.0,0.50540786]
[1724877114725,0.856992,59172.0,59145.0,0.0827]
[1724877114959,0.856992,59172.0,59131.0,0.50580786]
[1724877114960,0.338111,59152.0,59131.0,0.50580786]
[1724877115169,0.1537,59154.0,59131.0,0.50580786]
[1724877115170,0.80316328,59132.0,59131.0,0.50580786]
[1724877115387,1.57961528,59132.0,59131.0,0.50580786]
[1724877115617,0.84585,59112.0,59111.0,0.0004]
[1724877115835,1.48001428,59112.0,59111.0,0.0004]
[1724877116045,1.6233948,59112.0,59111.0,0.0004]
[1724877116252,1.28419,59112.0,59111.0,0.0004]
[1724877116486,0.94585,59112.0,59111.0,0.0004]
[1724877117119,0.60751,59112.0,59111.0,0.0004]
[1724877117343,1.6233948,59112.0,59111.0,0.0004]
[1724877117782,1.28419,59112.0,59111.0,0.0004]
[1724877118166,1.62253,59112.0,59111.0,0.0004]
[1724877118635,1.37169,59112.0,59111.0,0.0004]
[1724877118942,0.94585,59112.0,59111.0,0.0004]
[1724877119154,0.60751,59112.0,59111.0,0.0004]
[1724877119394,0.26917,59112.0,59111.0,0.0004]
[1724877119612,0.1,59112.0,59111.0,0.0004]
[1724877120102,0.00100002,59121.0,59114.0,0.169164]
[1724877120324,0.00100002,59121.0,59111.0,0.0004]
[1724877120538,0.169162,59115.0,59111.0,0.0004]
[1724877120797,0.338203,59137.0,59120.0,0.005]
[1724877121019,0.338234,59131.0,59122.0,0.005]
[1724877121244,0.00100002,59136.0,59117.0,0.0756]
[1724877121245,0.00100002,59130.0,59117.0,0.0756]
[1724877121519,0.50751,59112.0,59111.0,0.0004]
[1724877122008,0.005,59132.0,59112.0,0.005]
[1724877122260,0.005,59132.0,59111.0,0.0004]
[1724877122261,0.01,59130.0,59111.0,0.0004]
[1724877122497,0.84585,59112.0,59111.0,0.0004]
[1724877123015,1.42259,59112.0,59111.0,0.0004]
[1724877123262,1.8248837,59112.0,59111.0,0.0004]
[1724877123505,1.8268837,59112.0,59111.0,0.0004]
[1724877123717,1.62253,59112.0,59111.0,0.0004]
[1724877123979,1.28419,59112.0,59111.0,0.0004]
[1724877124740,1.63453,59112.0,59111.0,0.0004]
[1724877124977,1.8506327,59112.0,59111.0,0.0004]
[1724877125246,1.6884837,59112.0,59111.0,0.0004]
[1724877125524,2.0268237,59112.0,59111.0,0.0004]
[1724877125743,1.9780797,59112.0,59111.0,0.0004]
[1724877125985,2.0268237,59112.0,59111.0,0.0004]
[1724877126227,2.1662737,59112.0,59111.0,0.0004]
[1724877126472,1.61491,59105.0,59104.0,1e-06]
[1724877126713,2.7308748,59105.0,59104.0,1e-06]
[1724877127177,1.71291,59105.0,59104.0,1e-06]
[1724877127407,2.1060685,59105.0,59104.0,1e-06]
[1724877127633,2.4444485,59105.0,59104.0,1e-06]
[1724877127850,2.44696328,59105.0,59104.0,1e-06]
[1724877128065,2.50091698,59105.0,59104.0,1e-06]
[1724877128285,2.11053698,59105.0,59104.0,1e-06]
[1724877128535,1.18433,59105.0,59104.0,1e-06]
[1724877129207,1.5866637,59105.0,59104.0,1e-06]
[1724877129428,1.53271,59105.0,59104.0,1e-06]
[1724877129686,1.53271,59105.0,59091.0,0.0004]
[1724877129687,0.169227,59092.0,59091.0,0.0004]
[1724877130190,0.338333,59114.0,59091.0,0.0004]
[1724877130191,0.169215,59097.0,59093.0,0.005]
[1724877130444,0.1,59096.0,59094.0,0.005]
[1724877130673,0.269211,59098.0,59095.0,0.0763]
[1724877130918,0.01,59120.0,59101.0,0.0711]
[1724877131147,0.50540786,59124.0,59108.0,0.005]
[1724877131379,0.50540786,59124.0,59104.0,0.0009031]
[1724877131380,0.000821,59131.0,59120.0,0.005]
[1724877131602,0.50739,59126.0,59125.0,0.005]
[1724877131923,0.50739,59126.0,59125.0,0.0711]
[1724877132391,0.338237,59130.0,59128.0,0.005]
[1724877132681,0.338237,59130.0,59125.0,0.0661]
[1724877132682,0.84565,59126.0,59125.0,0.0661]
[1724877132952,0.84544683,59126.0,59125.0,0.0661]
[1724877133425,0.000821,59131.0,59129.0,0.0763]
[1724877133705,0.000821,59131.0,59130.0,0.005]
[1724877133931,0.000821,59131.0,59130.0,0.197118]